[Event "*** SCC Grand Prix: Titled Tuesday Blitz"]
[Site "Chess.com"]
[Date "2020.07.21"]
[Round "8"]
[White "alfiefischer77"]
[Black "mattcolins2025"]
[Result "0-1"]
[WhiteElo "2193"]
[BlackElo "2400"]
[TimeControl "180+1"]
[EndTime "11:35:52 PDT"]
[Termination "mattcolins2025 won on time"]

1. e4 {[%clk 0:03:00.9]} 1... c5 {[%clk 0:03:00]} 2. Nf3 {[%clk 0:03:01.1]} 2...
e6 {[%clk 0:03:00.6]} 3. d4 {[%clk 0:03:01.4]} 3... cxd4 {[%clk 0:03:01.5]} 4.
Nxd4 {[%clk 0:03:02]} 4... Nc6 {[%clk 0:03:02.1]} 5. Nc3 {[%clk 0:03:00.7]} 5...
Qc7 {[%clk 0:03:02]} 6. Be3 {[%clk 0:03:00.2]} 6... a6 {[%clk 0:03:02.5]} 7. Qd2
{[%clk 0:02:59.9]} 7... Nf6 {[%clk 0:03:02.6]} 8. O-O-O {[%clk 0:02:58.2]} 8...
Bb4 {[%clk 0:03:03.1]} 9. Bf4 {[%clk 0:02:43.4]} 9... e5 {[%clk 0:03:01.4]} 10.
Nxc6 {[%clk 0:02:42.6]} 10... dxc6 {[%clk 0:02:55.9]} 11. Bxe5 {[%clk
0:02:41.6]} 11... Qe7 {[%clk 0:02:54]} 12. Bd6 {[%clk 0:02:14.3]} 12... Bxd6
{[%clk 0:02:53.3]} 13. Qxd6 {[%clk 0:02:14.1]} 13... Be6 {[%clk 0:02:49.6]} 14.
f4 {[%clk 0:01:59.1]} 14... Qxd6 {[%clk 0:02:48.1]} 15. Rxd6 {[%clk 0:02:00]}
15... Ke7 {[%clk 0:02:47.8]} 16. e5 {[%clk 0:01:34.1]} 16... Nd7 {[%clk
0:02:37.5]} 17. Be2 {[%clk 0:01:27.4]} 17... g5 {[%clk 0:02:36.5]} 18. fxg5
{[%clk 0:01:04]} 18... Nxe5 {[%clk 0:02:35.6]} 19. Rdd1 {[%clk 0:01:02.5]} 19...
Rhg8 {[%clk 0:02:26.6]} 20. h4 {[%clk 0:00:59.5]} 20... Rad8 {[%clk 0:02:24.8]}
21. Rhe1 {[%clk 0:00:54.6]} 21... Ng6 {[%clk 0:02:18.8]} 22. g3 {[%clk
0:00:49.6]} 22... Rxd1+ {[%clk 0:02:11.5]} 23. Bxd1 {[%clk 0:00:44.9]} 23... Nf8
{[%clk 0:02:03.4]} 24. Ne4 {[%clk 0:00:40.9]} 24... Nd7 {[%clk 0:02:02.2]} 25.
Bg4 {[%clk 0:00:33.8]} 25... Ne5 {[%clk 0:01:24.9]} 26. Bxe6 {[%clk 0:00:27.9]}
26... Kxe6 {[%clk 0:01:25.8]} 27. Nf6 {[%clk 0:00:24.7]} 27... Rd8 {[%clk
0:01:25.4]} 28. Nxh7 {[%clk 0:00:17.7]} 28... Kf5 {[%clk 0:01:24.2]} 29. Nf6
{[%clk 0:00:15.3]} 29... c5 {[%clk 0:01:05.8]} 30. Rf1+ {[%clk 0:00:15.1]} 30...
Kg6 {[%clk 0:01:01.5]} 31. g4 {[%clk 0:00:15.3]} 31... c4 {[%clk 0:00:59.9]} 32.
b3 {[%clk 0:00:14.9]} 32... cxb3 {[%clk 0:00:59.8]} 33. axb3 {[%clk 0:00:15.8]}
33... Rh8 {[%clk 0:00:56.5]} 34. Rf5 {[%clk 0:00:14.4]} 34... Nc6 {[%clk
0:00:56.4]} 35. h5+ {[%clk 0:00:14.3]} 35... Kg7 {[%clk 0:00:57]} 36. h6+ {[%clk
0:00:14.3]} 36... Kg6 {[%clk 0:00:57.3]} 37. Rd5 {[%clk 0:00:12.4]} 37... Ne7
{[%clk 0:00:54.2]} 38. Re5 {[%clk 0:00:11.8]} 38... Nc6 {[%clk 0:00:52.1]} 39.
Re8 {[%clk 0:00:10.5]} 39... Rxe8 {[%clk 0:00:47.6]} 40. Nxe8 {[%clk 0:00:11.4]}
40... Ne7 {[%clk 0:00:47.8]} 41. Nf6 {[%clk 0:00:10.3]} 41... Kxg5 {[%clk
0:00:46.5]} 42. h7 {[%clk 0:00:07.8]} 42... Ng6 {[%clk 0:00:46.8]} 43. Nd7
{[%clk 0:00:05.1]} 43... Kxg4 {[%clk 0:00:44.7]} 44. Nc5 {[%clk 0:00:05.5]}
44... f5 {[%clk 0:00:42.2]} 45. Nxb7 {[%clk 0:00:04.8]} 45... f4 {[%clk
0:00:42.6]} 46. Nd6 {[%clk 0:00:04.6]} 46... Kg3 {[%clk 0:00:41.1]} 47. Ne4+
{[%clk 0:00:03.4]} 47... Kf3 {[%clk 0:00:39.4]} 48. Ng5+ {[%clk 0:00:03.7]}
48... Kg4 {[%clk 0:00:39.5]} 49. Nf7 {[%clk 0:00:04]} 49... f3 {[%clk
0:00:38.7]} 50. Kd2 {[%clk 0:00:04.4]} 50... Kg3 {[%clk 0:00:38.4]} 51. Ke1
{[%clk 0:00:04]} 51... Kg2 {[%clk 0:00:38.1]} 52. Kd2 {[%clk 0:00:03.8]} 52...
f2 {[%clk 0:00:38.3]} 0-1

[Event "*** SCC Grand Prix: Titled Tuesday Blitz"]
[Site "Chess.com"]
[Date "2020.07.21"]
[Round "8"]
[White "sergeikim"]
[Black "Spartakus1975"]
[Result "0-1"]
[WhiteElo "2448"]
[BlackElo "2636"]
[TimeControl "180+1"]
[EndTime "11:35:55 PDT"]
[Termination "Spartakus1975 won by checkmate"]

1. d4 {[%clk 0:03:00.9]} 1... d5 {[%clk 0:02:56.2]} 2. c4 {[%clk 0:03:00.7]}
2... dxc4 {[%clk 0:02:56.4]} 3. e3 {[%clk 0:03:00]} 3... Be6 {[%clk 0:02:54.8]}
4. Qc2 {[%clk 0:02:57.3]} 4... b5 {[%clk 0:02:38.9]} 5. a4 {[%clk 0:02:49.7]}
5... c6 {[%clk 0:02:38.8]} 6. Nc3 {[%clk 0:02:33.7]} 6... b4 {[%clk 0:02:10.5]}
7. Ne4 {[%clk 0:02:31.7]} 7... Nf6 {[%clk 0:02:09.6]} 8. Nxf6+ {[%clk
0:02:24.3]} 8... exf6 {[%clk 0:02:08.7]} 9. Bxc4 {[%clk 0:02:24]} 9... Bd6
{[%clk 0:02:04.4]} 10. Nf3 {[%clk 0:02:20.3]} 10... O-O {[%clk 0:02:04]} 11. O-O
{[%clk 0:02:17.9]} 11... a5 {[%clk 0:02:03.8]} 12. b3 {[%clk 0:02:15.8]} 12...
Re8 {[%clk 0:01:55.8]} 13. h3 {[%clk 0:02:11.9]} 13... Bd5 {[%clk 0:01:52]} 14.
Nd2 {[%clk 0:02:07.6]} 14... Bc7 {[%clk 0:01:38.2]} 15. e4 {[%clk 0:01:56.4]}
15... Qd6 {[%clk 0:01:37]} 16. f4 {[%clk 0:01:36.2]} 16... Be6 {[%clk
0:01:28.2]} 17. Bb2 {[%clk 0:01:32.1]} 17... Bb6 {[%clk 0:01:25.3]} 18. Qd3
{[%clk 0:01:13.7]} 18... Rd8 {[%clk 0:01:15.6]} 19. Bxe6 {[%clk 0:00:30.9]}
19... fxe6 {[%clk 0:01:01.9]} 20. Nf3 {[%clk 0:00:24.1]} 20... c5 {[%clk
0:00:55]} 21. Rad1 {[%clk 0:00:19.3]} 21... cxd4 {[%clk 0:00:51.2]} 22. e5
{[%clk 0:00:13.5]} 22... Qd5 {[%clk 0:00:45.5]} 23. Rfe1 {[%clk 0:00:08.6]}
23... f5 {[%clk 0:00:39.5]} 24. g4 {[%clk 0:00:06.2]} 24... Nc6 {[%clk 0:00:36]}
25. gxf5 {[%clk 0:00:05.6]} 25... exf5 {[%clk 0:00:35.9]} 26. Ng5 {[%clk
0:00:03]} 26... h6 {[%clk 0:00:31.1]} 27. Nf3 {[%clk 0:00:02.4]} 27... Re8
{[%clk 0:00:23.4]} 28. Nh4 {[%clk 0:00:02.4]} 28... Rf8 {[%clk 0:00:16.3]} 29.
Kh2 {[%clk 0:00:02.4]} 29... g5 {[%clk 0:00:10.5]} 30. Rg1 {[%clk 0:00:02.8]}
30... Kh7 {[%clk 0:00:08]} 31. Nxf5 {[%clk 0:00:02.8]} 31... Nxe5 {[%clk
0:00:08.9]} 32. fxe5 {[%clk 0:00:02.3]} 32... Qxe5+ {[%clk 0:00:08.8]} 33. Ng3+
{[%clk 0:00:03.2]} 33... Kh8 {[%clk 0:00:08.5]} 34. Rde1 {[%clk 0:00:03.7]}
34... Rf2+ {[%clk 0:00:08.3]} 35. Kh1 {[%clk 0:00:03.8]} 35... Qf4 {[%clk
0:00:07.3]} 36. Ne4 {[%clk 0:00:02.8]} 36... Qh2# {[%clk 0:00:06.4]} 0-1

[Event "*** SCC Grand Prix: Titled Tuesday Blitz"]
[Site "Chess.com"]
[Date "2020.07.21"]
[Round "8"]
[White "profofchess"]
[Black "Brave_spirit12"]
[Result "1-0"]
[WhiteElo "2362"]
[BlackElo "2480"]
[TimeControl "180+1"]
[EndTime "11:35:56 PDT"]
[Termination "profofchess won by checkmate"]

1. e4 {[%clk 0:03:00.9]} 1... e6 {[%clk 0:02:58.9]} 2. d4 {[%clk 0:03:00.9]}
2... d5 {[%clk 0:02:59.8]} 3. Nc3 {[%clk 0:03:00.9]} 3... Nf6 {[%clk 0:02:59.1]}
4. Bg5 {[%clk 0:02:59.5]} 4... Be7 {[%clk 0:02:58.1]} 5. e5 {[%clk 0:02:59.6]}
5... Nfd7 {[%clk 0:02:57.9]} 6. h4 {[%clk 0:03:00.2]} 6... h6 {[%clk 0:02:55.6]}
7. Bxe7 {[%clk 0:02:59]} 7... Qxe7 {[%clk 0:02:56.5]} 8. Qd2 {[%clk 0:02:48]}
8... a6 {[%clk 0:02:54.3]} 9. f4 {[%clk 0:02:36.8]} 9... c5 {[%clk 0:02:53.9]}
10. dxc5 {[%clk 0:02:36.7]} 10... Nc6 {[%clk 0:02:53.1]} 11. Nf3 {[%clk
0:02:36.6]} 11... Nxc5 {[%clk 0:02:52.5]} 12. O-O-O {[%clk 0:02:34.8]} 12... b5
{[%clk 0:02:46.5]} 13. Bd3 {[%clk 0:02:34.4]} 13... Bb7 {[%clk 0:02:45.1]} 14.
Ne2 {[%clk 0:02:29.2]} 14... Rc8 {[%clk 0:02:39.2]} 15. Kb1 {[%clk 0:02:22.1]}
15... h5 {[%clk 0:02:26.2]} 16. Ned4 {[%clk 0:02:17.5]} 16... O-O {[%clk
0:02:24.4]} 17. Rhg1 {[%clk 0:02:07.2]} 17... Ne4 {[%clk 0:02:15.4]} 18. Qe3
{[%clk 0:02:04.1]} 18... Qb4 {[%clk 0:01:46.5]} 19. Ka1 {[%clk 0:01:44.2]} 19...
Na5 {[%clk 0:01:41.5]} 20. g4 {[%clk 0:01:28.8]} 20... hxg4 {[%clk 0:01:10.7]}
21. Rxg4 {[%clk 0:01:29.7]} 21... f5 {[%clk 0:01:09]} 22. exf6 {[%clk
0:01:24.8]} 22... Rxf6 {[%clk 0:01:08.5]} 23. Rdg1 {[%clk 0:01:20.4]} 23... Rc7
{[%clk 0:01:03.4]} 24. Ng5 {[%clk 0:01:01.2]} 24... Nxg5 {[%clk 0:00:32.5]} 25.
hxg5 {[%clk 0:00:52.5]} 25... Rff7 {[%clk 0:00:27]} 26. Nxe6 {[%clk 0:00:24.1]}
26... Rfe7 {[%clk 0:00:20.2]} 27. f5 {[%clk 0:00:17.9]} 27... Nc4 {[%clk
0:00:15.9]} 28. Bxc4 {[%clk 0:00:14.9]} 28... Rxc4 {[%clk 0:00:15.5]} 29. Rxc4
{[%clk 0:00:12]} 29... dxc4 {[%clk 0:00:16.4]} 30. f6 {[%clk 0:00:11.9]} 30...
Rf7 {[%clk 0:00:09.5]} 31. g6 {[%clk 0:00:06.8]} 31... Rxf6 {[%clk 0:00:08.6]}
32. Nc5 {[%clk 0:00:05.4]} 32... Bd5 {[%clk 0:00:04.3]} 33. Qe7 {[%clk
0:00:04.9]} 33... Qd2 {[%clk 0:00:02]} 34. a3 {[%clk 0:00:01.8]} 34... Qf2
{[%clk 0:00:02.1]} 35. Qd8+ {[%clk 0:00:01.6]} 35... Rf8 {[%clk 0:00:02.2]} 36.
Qxd5+ {[%clk 0:00:01.1]} 36... Kh8 {[%clk 0:00:03.1]} 37. Rh1+ {[%clk
0:00:01.8]} 37... Qh4 {[%clk 0:00:04]} 38. Rxh4# {[%clk 0:00:01.7]} 1-0

[Event "*** SCC Grand Prix: Titled Tuesday Blitz"]
[Site "Chess.com"]
[Date "2020.07.21"]
[Round "8"]
[White "Susal_De_Silva"]
[Black "ChessicallyInclined"]
[Result "0-1"]
[WhiteElo "2329"]
[BlackElo "2514"]
[TimeControl "180+1"]
[EndTime "11:35:59 PDT"]
[Termination "ChessicallyInclined won by resignation"]

1. e4 {[%clk 0:03:00.9]} 1... c5 {[%clk 0:02:58.2]} 2. Nf3 {[%clk 0:03:00.9]}
2... Nc6 {[%clk 0:02:54.3]} 3. Bb5 {[%clk 0:03:00.5]} 3... g6 {[%clk 0:02:53.4]}
4. Bxc6 {[%clk 0:03:00.4]} 4... dxc6 {[%clk 0:02:54]} 5. d3 {[%clk 0:03:00]}
5... Bg7 {[%clk 0:02:54.3]} 6. h3 {[%clk 0:03:00.2]} 6... Qc7 {[%clk 0:02:54.6]}
7. O-O {[%clk 0:02:59.9]} 7... e5 {[%clk 0:02:54.3]} 8. Nc3 {[%clk 0:02:59.8]}
8... Ne7 {[%clk 0:02:52.2]} 9. Be3 {[%clk 0:02:59.8]} 9... b6 {[%clk 0:02:51.9]}
10. a4 {[%clk 0:02:59.6]} 10... a5 {[%clk 0:02:51.6]} 11. Qd2 {[%clk 0:02:59.2]}
11... h6 {[%clk 0:02:49.8]} 12. Ne2 {[%clk 0:02:48.3]} 12... f5 {[%clk
0:02:48.9]} 13. Qc1 {[%clk 0:02:22.6]} 13... f4 {[%clk 0:02:47.5]} 14. Bd2
{[%clk 0:02:21.7]} 14... g5 {[%clk 0:02:46.5]} 15. Nh2 {[%clk 0:02:20.5]} 15...
h5 {[%clk 0:02:44.8]} 16. c3 {[%clk 0:02:15.1]} 16... Ng6 {[%clk 0:02:38.1]} 17.
d4 {[%clk 0:02:14.4]} 17... cxd4 {[%clk 0:02:33.6]} 18. cxd4 {[%clk 0:02:14.7]}
18... exd4 {[%clk 0:02:34.5]} 19. Nf3 {[%clk 0:02:13.7]} 19... Ba6 {[%clk
0:02:33.1]} 20. Re1 {[%clk 0:02:09]} 20... Bxe2 {[%clk 0:02:31.1]} 21. Rxe2
{[%clk 0:02:09.1]} 21... g4 {[%clk 0:02:31.7]} 22. Ng5 {[%clk 0:02:03.4]} 22...
f3 {[%clk 0:01:59.6]} 23. Ne6 {[%clk 0:01:58.9]} 23... Qd7 {[%clk 0:01:51.3]}
24. Nxg7+ {[%clk 0:01:53.8]} 24... Kf7 {[%clk 0:01:47.8]} 25. Re1 {[%clk
0:01:47.9]} 25... Kxg7 {[%clk 0:01:47.1]} 26. e5 {[%clk 0:01:46.6]} 26... Qe6
{[%clk 0:01:45.2]} 27. Bg5 {[%clk 0:01:43.5]} 27... fxg2 {[%clk 0:01:34.5]} 28.
Bf6+ {[%clk 0:01:42.5]} 28... Kf7 {[%clk 0:01:32.4]} 29. Bxh8 {[%clk 0:01:26.7]}
29... Rxh8 {[%clk 0:01:33.3]} 30. Qg5 {[%clk 0:01:26.4]} 30... gxh3 {[%clk
0:01:25.6]} 31. f4 {[%clk 0:01:22.3]} 31... Ne7 {[%clk 0:01:24.1]} 32. f5 {[%clk
0:01:00.4]} 32... Nxf5 {[%clk 0:01:22.3]} 33. Re4 {[%clk 0:01:00]} 33... Ke8
{[%clk 0:00:53.3]} 34. Rf4 {[%clk 0:00:57.1]} 34... Ne7 {[%clk 0:00:52.8]} 35.
Rf6 {[%clk 0:00:46.1]} 35... Qb3 {[%clk 0:00:49.6]} 36. e6 {[%clk 0:00:30.9]}
36... Qe3+ {[%clk 0:00:39.8]} 37. Qxe3 {[%clk 0:00:30.4]} 37... dxe3 {[%clk
0:00:40.7]} 38. Re1 {[%clk 0:00:28.2]} 38... Nd5 {[%clk 0:00:38.8]} 39. Rf7
{[%clk 0:00:27.1]} 39... Rh6 {[%clk 0:00:38.7]} 40. Kh2 {[%clk 0:00:22]} 40...
Rxe6 {[%clk 0:00:38.1]} 41. Rg7 {[%clk 0:00:20.6]} 41... Nf4 {[%clk 0:00:34.5]}
42. Kg3 {[%clk 0:00:19.6]} 42... Nd3 {[%clk 0:00:23.7]} 43. Rf1 {[%clk
0:00:04.9]} 43... gxf1=N+ {[%clk 0:00:18.3]} 0-1

[Event "*** SCC Grand Prix: Titled Tuesday Blitz"]
[Site "Chess.com"]
[Date "2020.07.21"]
[Round "8"]
[White "axvesik"]
[Black "qingaunlee"]
[Result "1-0"]
[WhiteElo "2469"]
[BlackElo "2339"]
[TimeControl "180+1"]
[EndTime "11:35:59 PDT"]
[Termination "axvesik won by resignation"]

1. e4 {[%clk 0:03:00.9]} 1... e6 {[%clk 0:02:59.8]} 2. d4 {[%clk 0:03:00.3]}
2... d5 {[%clk 0:02:59.6]} 3. Nc3 {[%clk 0:03:00.9]} 3... Bb4 {[%clk 0:02:58.7]}
4. exd5 {[%clk 0:02:56.2]} 4... exd5 {[%clk 0:02:58.5]} 5. Bd3 {[%clk
0:02:55.2]} 5... Nc6 {[%clk 0:02:57.4]} 6. a3 {[%clk 0:02:54.5]} 6... Bxc3+
{[%clk 0:02:51]} 7. bxc3 {[%clk 0:02:51.1]} 7... Qf6 {[%clk 0:02:50.6]} 8. Ne2
{[%clk 0:02:41.3]} 8... Nge7 {[%clk 0:02:49.6]} 9. O-O {[%clk 0:02:38.4]} 9...
Bf5 {[%clk 0:02:47.6]} 10. Bf4 {[%clk 0:02:36]} 10... O-O-O {[%clk 0:02:43.2]}
11. Rb1 {[%clk 0:02:33.8]} 11... g5 {[%clk 0:02:37.4]} 12. Bg3 {[%clk
0:02:31.7]} 12... h5 {[%clk 0:02:36.7]} 13. Re1 {[%clk 0:02:11]} 13... Ng6
{[%clk 0:02:09.9]} 14. Nc1 {[%clk 0:01:50.8]} 14... h4 {[%clk 0:02:02.9]} 15.
Qf3 {[%clk 0:01:46.8]} 15... hxg3 {[%clk 0:01:43.5]} 16. Qxf5+ {[%clk
0:01:42.2]} 16... Qxf5 {[%clk 0:01:42.6]} 17. Bxf5+ {[%clk 0:01:43.1]} 17... Kb8
{[%clk 0:01:42.7]} 18. hxg3 {[%clk 0:01:42.2]} 18... Nge7 {[%clk 0:01:42.1]} 19.
Bd3 {[%clk 0:01:40.7]} 19... Nc8 {[%clk 0:01:41.9]} 20. Nb3 {[%clk 0:01:40.6]}
20... Nd6 {[%clk 0:01:39.8]} 21. Nc5 {[%clk 0:01:36.8]} 21... Rh6 {[%clk
0:01:37.6]} 22. f3 {[%clk 0:01:32.8]} 22... b6 {[%clk 0:01:28.3]} 23. Kf2 {[%clk
0:01:30.1]} 23... Rf6 {[%clk 0:01:20.8]} 24. Na6+ {[%clk 0:01:23.7]} 24... Kc8
{[%clk 0:01:18.1]} 25. Nb4 {[%clk 0:01:23.2]} 25... Nxb4 {[%clk 0:01:13.4]} 26.
axb4 {[%clk 0:01:04]} 26... g4 {[%clk 0:01:08.9]} 27. Re7 {[%clk 0:00:59.7]}
27... gxf3 {[%clk 0:01:07]} 28. gxf3 {[%clk 0:00:57.8]} 28... Rh8 {[%clk
0:01:06]} 29. Ra1 {[%clk 0:00:49.9]} 29... Kb8 {[%clk 0:00:55.3]} 30. Kg2 {[%clk
0:00:48.2]} 30... Rfh6 {[%clk 0:00:54.2]} 31. f4 {[%clk 0:00:47.3]} 31... Rh2+
{[%clk 0:00:53.2]} 32. Kf3 {[%clk 0:00:47.1]} 32... f5 {[%clk 0:00:52.1]} 33.
Re5 {[%clk 0:00:43.5]} 33... Ne4 {[%clk 0:00:27.1]} 34. Rxd5 {[%clk 0:00:38.7]}
34... Nxg3 {[%clk 0:00:17]} 35. Bxf5 {[%clk 0:00:31.6]} 35... Nxf5 {[%clk
0:00:15.7]} 36. Rxf5 {[%clk 0:00:31.7]} 36... Rxc2 {[%clk 0:00:16.3]} 37. Ke4
{[%clk 0:00:28.3]} 37... Rxc3 {[%clk 0:00:14.1]} 38. Re5 {[%clk 0:00:28.3]}
38... Rhh3 {[%clk 0:00:13]} 39. f5 {[%clk 0:00:27.1]} 39... Rce3+ {[%clk
0:00:12.6]} 40. Kd5 {[%clk 0:00:27.1]} 40... Rd3 {[%clk 0:00:12.7]} 41. Rf1
{[%clk 0:00:23.4]} 41... Rh4 {[%clk 0:00:12.5]} 42. Re4 {[%clk 0:00:23.3]} 42...
c6+ {[%clk 0:00:11.7]} 43. Ke5 {[%clk 0:00:23.1]} 43... Rh8 {[%clk 0:00:12.2]}
44. f6 {[%clk 0:00:22.6]} 44... Rf8 {[%clk 0:00:11.2]} 45. f7 {[%clk 0:00:22.4]}
45... Kc7 {[%clk 0:00:11.1]} 46. Ke6 {[%clk 0:00:21.2]} 46... Rh3 {[%clk
0:00:09.5]} 47. Ke7 {[%clk 0:00:20.3]} 47... Rhh8 {[%clk 0:00:09.3]} 48. Re6
{[%clk 0:00:20.5]} 48... Rd8 {[%clk 0:00:08.8]} 49. f8=Q {[%clk 0:00:19.8]}
49... Rdxf8 {[%clk 0:00:08.4]} 50. Rxf8 {[%clk 0:00:20.5]} 50... Rxf8 {[%clk
0:00:07.5]} 51. Kxf8 {[%clk 0:00:21.2]} 1-0

[Event "*** SCC Grand Prix: Titled Tuesday Blitz"]
[Site "Chess.com"]
[Date "2020.07.21"]
[Round "8"]
[White "GOGIEFF"]
[Black "Semen_Khanin"]
[Result "1/2-1/2"]
[WhiteElo "2908"]
[BlackElo "2762"]
[TimeControl "180+1"]
[EndTime "11:36:00 PDT"]
[Termination "Game drawn by repetition"]

1. d4 {[%clk 0:03:00.9]} 1... Nf6 {[%clk 0:03:00.2]} 2. c4 {[%clk 0:03:00.5]}
2... e6 {[%clk 0:03:00.9]} 3. Nc3 {[%clk 0:03:00.7]} 3... d5 {[%clk 0:02:59.1]}
4. cxd5 {[%clk 0:03:00.6]} 4... exd5 {[%clk 0:02:59.3]} 5. Bg5 {[%clk
0:02:59.9]} 5... c6 {[%clk 0:02:59.2]} 6. e3 {[%clk 0:03:00]} 6... Nbd7 {[%clk
0:02:59.4]} 7. Bd3 {[%clk 0:02:58.5]} 7... Bd6 {[%clk 0:02:59.2]} 8. Nf3 {[%clk
0:02:53.8]} 8... h6 {[%clk 0:02:54]} 9. Bh4 {[%clk 0:02:49.7]} 9... O-O {[%clk
0:02:53.3]} 10. O-O {[%clk 0:02:49.3]} 10... Re8 {[%clk 0:02:52.6]} 11. Qc2
{[%clk 0:02:37.6]} 11... Nf8 {[%clk 0:02:52]} 12. Rae1 {[%clk 0:02:35.5]} 12...
Bg4 {[%clk 0:02:49]} 13. Nd2 {[%clk 0:02:34.9]} 13... Bh5 {[%clk 0:02:49.2]} 14.
f4 {[%clk 0:02:10.1]} 14... g5 {[%clk 0:01:35.1]} 15. Bg3 {[%clk 0:02:00.5]}
15... Ng4 {[%clk 0:01:35.3]} 16. Nd1 {[%clk 0:01:56.9]} 16... gxf4 {[%clk
0:01:14.9]} 17. exf4 {[%clk 0:01:57]} 17... Ne6 {[%clk 0:01:07.7]} 18. Nb3
{[%clk 0:01:42.3]} 18... Qb6 {[%clk 0:01:07.3]} 19. Bh7+ {[%clk 0:00:50.1]}
19... Kg7 {[%clk 0:01:03.1]} 20. Qd3 {[%clk 0:00:42.4]} 20... Nf6 {[%clk
0:00:45.2]} 21. Bf5 {[%clk 0:00:39.5]} 21... a5 {[%clk 0:00:22.2]} 22. Bxe6
{[%clk 0:00:35.3]} 22... fxe6 {[%clk 0:00:20.4]} 23. f5 {[%clk 0:00:31.9]} 23...
Bxg3 {[%clk 0:00:07.9]} 24. Qxg3+ {[%clk 0:00:32.8]} 24... Kh7 {[%clk
0:00:06.8]} 25. Rxe6 {[%clk 0:00:30.7]} 25... Rg8 {[%clk 0:00:06.4]} 26. Qe5
{[%clk 0:00:28.7]} 26... Raf8 {[%clk 0:00:05.5]} 27. Rxf6 {[%clk 0:00:28.3]}
27... Rxf6 {[%clk 0:00:02.9]} 28. Qxf6 {[%clk 0:00:28.3]} 28... a4 {[%clk
0:00:03.5]} 29. Nc5 {[%clk 0:00:19.9]} 29... Bxd1 {[%clk 0:00:03.1]} 30. Ne6
{[%clk 0:00:13.8]} 30... Qxb2 {[%clk 0:00:02]} 31. g3 {[%clk 0:00:12.8]} 31...
Qe2 {[%clk 0:00:01.6]} 32. Qf7+ {[%clk 0:00:11.7]} 32... Kh8 {[%clk 0:00:01.7]}
33. Qf6+ {[%clk 0:00:12.1]} 33... Kh7 {[%clk 0:00:02.3]} 34. Nf8+ {[%clk
0:00:12.3]} 34... Rxf8 {[%clk 0:00:02.2]} 35. Qxf8 {[%clk 0:00:13.2]} 35... Qe3+
{[%clk 0:00:02.7]} 36. Kg2 {[%clk 0:00:12.5]} 36... Qe4+ {[%clk 0:00:03.1]} 37.
Kg1 {[%clk 0:00:12.8]} 37... Qe3+ {[%clk 0:00:02.9]} 38. Rf2 {[%clk 0:00:11.4]}
38... Qe1+ {[%clk 0:00:03.2]} 39. Kg2 {[%clk 0:00:11.7]} 39... Qe4+ {[%clk
0:00:03.4]} 40. Kg1 {[%clk 0:00:12.1]} 40... Qe1+ {[%clk 0:00:03.5]} 41. Kg2
{[%clk 0:00:12.5]} 41... Qe4+ {[%clk 0:00:03.7]} 42. Kg1 {[%clk 0:00:12.9]}
42... Qe1+ {[%clk 0:00:03.9]} 1/2-1/2

[Event "*** SCC Grand Prix: Titled Tuesday Blitz"]
[Site "Chess.com"]
[Date "2020.07.21"]
[Round "8"]
[White "Zurability"]
[Black "Gareth-Bale11"]
[Result "1-0"]
[WhiteElo "2602"]
[BlackElo "2695"]
[TimeControl "180+1"]
[EndTime "11:36:00 PDT"]
[Termination "Zurability won by resignation"]

1. Nf3 {[%clk 0:03:00.9]} 1... d5 {[%clk 0:02:59.8]} 2. g3 {[%clk 0:03:01.2]}
2... g6 {[%clk 0:03:00.3]} 3. Bg2 {[%clk 0:03:02.1]} 3... Bg7 {[%clk 0:03:00.2]}
4. O-O {[%clk 0:03:03]} 4... e5 {[%clk 0:02:57.3]} 5. c4 {[%clk 0:03:01.8]} 5...
dxc4 {[%clk 0:02:56.3]} 6. Na3 {[%clk 0:02:57.8]} 6... Nc6 {[%clk 0:02:52.9]} 7.
Nxc4 {[%clk 0:02:57.8]} 7... Nge7 {[%clk 0:02:53.5]} 8. d3 {[%clk 0:02:55.5]}
8... O-O {[%clk 0:02:53.4]} 9. Rb1 {[%clk 0:02:55.3]} 9... a5 {[%clk 0:02:53]}
10. a3 {[%clk 0:02:55.2]} 10... Be6 {[%clk 0:02:50.1]} 11. Qc2 {[%clk
0:02:24.1]} 11... a4 {[%clk 0:02:26.2]} 12. Bg5 {[%clk 0:02:07.9]} 12... h6
{[%clk 0:02:23.2]} 13. Bd2 {[%clk 0:02:07.5]} 13... Qd7 {[%clk 0:02:20.3]} 14.
Rfc1 {[%clk 0:02:03.5]} 14... Kh7 {[%clk 0:02:11.6]} 15. b4 {[%clk 0:01:56.4]}
15... axb3 {[%clk 0:02:09.2]} 16. Rxb3 {[%clk 0:01:54.6]} 16... Ra7 {[%clk
0:02:01.7]} 17. Rbb1 {[%clk 0:01:39.2]} 17... Rd8 {[%clk 0:01:47]} 18. Bc3
{[%clk 0:01:34.4]} 18... e4 {[%clk 0:01:27.7]} 19. dxe4 {[%clk 0:01:25.4]} 19...
Bxc3 {[%clk 0:01:15.1]} 20. Qxc3 {[%clk 0:01:24.2]} 20... Nd4 {[%clk 0:01:15.7]}
21. Rb2 {[%clk 0:00:47]} 21... Nec6 {[%clk 0:01:02]} 22. Ne3 {[%clk 0:00:37.2]}
22... Nxf3+ {[%clk 0:00:49.1]} 23. Bxf3 {[%clk 0:00:36.2]} 23... Qd4 {[%clk
0:00:49.2]} 24. e5 {[%clk 0:00:26.2]} 24... Qxc3 {[%clk 0:00:29.8]} 25. Rxc3
{[%clk 0:00:25.7]} 25... Nxe5 {[%clk 0:00:30.4]} 26. Bxb7 {[%clk 0:00:17.1]}
26... c6 {[%clk 0:00:25.2]} 27. f4 {[%clk 0:00:11.6]} 27... Rb8 {[%clk
0:00:21.4]} 28. fxe5 {[%clk 0:00:09]} 28... Rbxb7 {[%clk 0:00:20.7]} 29. Rxb7
{[%clk 0:00:09.3]} 29... Rxb7 {[%clk 0:00:21.6]} 30. Rxc6 {[%clk 0:00:09.2]}
30... Rb3 {[%clk 0:00:21.5]} 31. Nc2 {[%clk 0:00:09.7]} 31... Rb5 {[%clk
0:00:18.8]} 32. Kf2 {[%clk 0:00:06.1]} 32... Rxe5 {[%clk 0:00:17.9]} 33. Nd4
{[%clk 0:00:05.9]} 33... Ba2 {[%clk 0:00:15.7]} 34. Rc2 {[%clk 0:00:05.4]} 34...
Be6 {[%clk 0:00:14.7]} 35. a4 {[%clk 0:00:03.5]} 35... Kg7 {[%clk 0:00:14.3]}
36. Nxe6+ {[%clk 0:00:03.6]} 36... Rxe6 {[%clk 0:00:14.2]} 37. Ra2 {[%clk
0:00:04.5]} 37... Ra6 {[%clk 0:00:13.9]} 38. a5 {[%clk 0:00:05.4]} 38... Kf6
{[%clk 0:00:14.5]} 39. Ke3 {[%clk 0:00:06.1]} 39... Ke5 {[%clk 0:00:15.1]} 40.
Kd3 {[%clk 0:00:05.8]} 40... f5 {[%clk 0:00:15]} 41. Kc4 {[%clk 0:00:05.8]}
41... g5 {[%clk 0:00:11.9]} 42. Kb5 {[%clk 0:00:06.2]} 42... Ra8 {[%clk
0:00:12.3]} 43. a6 {[%clk 0:00:06.8]} 43... Ke4 {[%clk 0:00:09.6]} 44. a7 {[%clk
0:00:06.6]} 1-0